[Event "Live Chess"]
[Site "Chess.com"]
[Date "2023.05.20"]
[Round "-"]
[White "apl_trainer"]
[Black "Doge_Dandolo"]
[Result "1-0"]
[WhiteElo "1630"]
[BlackElo "2026"]
[TimeControl "300"]
[EndTime "12:14:30 PDT"]
[Termination "apl_trainer won by checkmate"]

1. d4 {[%clk 0:04:57.4]} 1... d5 {[%clk 0:04:58.6]} 2. c4 {[%clk 0:04:56.2]}
2... c6 {[%clk 0:04:57.9]} 3. Nf3 {[%clk 0:04:53.4]} 3... Nf6 {[%clk 0:04:56.9]}
4. Nc3 {[%clk 0:04:52.2]} 4... a6 {[%clk 0:04:56.2]} 5. c5 {[%clk 0:04:46.9]}
5... g6 {[%clk 0:04:53.7]} 6. Bf4 {[%clk 0:04:40.3]} 6... Bg7 {[%clk 0:04:50.1]}
7. h3 {[%clk 0:04:39]} 7... O-O {[%clk 0:04:45.6]} 8. e3 {[%clk 0:04:37.9]} 8...
Bf5 {[%clk 0:04:43.9]} 9. Qb3 {[%clk 0:04:35.5]} 9... Ra7 {[%clk 0:04:40]} 10.
Be2 {[%clk 0:04:31.6]} 10... Nbd7 {[%clk 0:04:36.3]} 11. O-O {[%clk 0:04:28.1]}
11... Ne4 {[%clk 0:04:31.9]} 12. Bh2 {[%clk 0:04:11.4]} 12... Re8 {[%clk
0:04:20.4]} 13. Nh4 {[%clk 0:04:05.7]} 13... Nxc3 {[%clk 0:04:11.6]} 14. bxc3
{[%clk 0:03:56.4]} 14... Be6 {[%clk 0:04:07.6]} 15. Bd3 {[%clk 0:03:47.3]} 15...
f6 {[%clk 0:04:00.7]} 16. Nf3 {[%clk 0:03:45]} 16... Bf7 {[%clk 0:03:59.2]} 17.
c4 {[%clk 0:03:38.5]} 17... e5 {[%clk 0:03:48.2]} 18. cxd5 {[%clk 0:03:31.7]}
18... e4 {[%clk 0:03:45.6]} 19. Bc4 {[%clk 0:03:30.6]} 19... exf3 {[%clk
0:03:43.8]} 20. dxc6 {[%clk 0:03:28.7]} 20... Bxc4 {[%clk 0:03:41.5]} 21. Qxc4+
{[%clk 0:03:25.5]} 21... Kh8 {[%clk 0:03:37.6]} 22. cxd7 {[%clk 0:03:23.5]}
22... Qxd7 {[%clk 0:03:35.7]} 23. gxf3 {[%clk 0:03:15.4]} 23... Qxh3 {[%clk
0:03:34.3]} 24. Qf7 {[%clk 0:03:06.6]} 24... Rf8 {[%clk 0:03:24.1]} 25. Qe7
{[%clk 0:02:56.1]} 25... Qxf3 {[%clk 0:03:20.1]} 26. Rab1 {[%clk 0:02:54.8]}
26... f5 {[%clk 0:03:16]} 27. Rb6 {[%clk 0:02:37.7]} 27... Qg4+ {[%clk
0:03:03.8]} 28. Bg3 {[%clk 0:02:36.2]} 28... h5 {[%clk 0:03:02.6]} 29. Rfb1
{[%clk 0:02:22.2]} 29... Raa8 {[%clk 0:02:44.4]} 30. Rxb7 {[%clk 0:02:16.5]}
30... Rg8 {[%clk 0:02:43]} 31. Qh4 {[%clk 0:02:09.8]} 31... Qf3 {[%clk
0:02:39.9]} 32. Qg5 {[%clk 0:02:02.1]} 32... Qe4 {[%clk 0:02:31.2]} 33. Qxg6
{[%clk 0:01:51.5]} 33... Qf3 {[%clk 0:02:29.9]} 34. R1b6 {[%clk 0:01:39.2]}
34... Rae8 {[%clk 0:02:08.7]} 35. Qh6+ {[%clk 0:01:35]} 35... Bxh6 {[%clk
0:02:06]} 36. Rxh6# {[%clk 0:01:33.4]} 1-0

[Event "Live Chess"]
[Site "Chess.com"]
[Date "2023.05.20"]
[Round "-"]
[White "blunderabit"]
[Black "thrithik"]
[Result "1-0"]
[WhiteElo "1890"]
[BlackElo "385"]
[TimeControl "300"]
[EndTime "12:14:37 PDT"]
[Termination "blunderabit won by checkmate"]

1. e4 {[%clk 0:04:58.1]} 1... a6 {[%clk 0:04:57.9]} 2. d4 {[%clk 0:04:56]} 2...
Nc6 {[%clk 0:04:57.5]} 3. Nf3 {[%clk 0:04:53]} 3... Nf6 {[%clk 0:04:57]} 4. d5
{[%clk 0:04:49.9]} 4... Nxe4 {[%clk 0:04:56.6]} 5. dxc6 {[%clk 0:04:47.8]} 5...
dxc6 {[%clk 0:04:55.2]} 6. Qxd8+ {[%clk 0:04:45.5]} 6... Kxd8 {[%clk 0:04:52.7]}
7. Bd3 {[%clk 0:04:42.4]} 7... Bf5 {[%clk 0:04:50.8]} 8. O-O {[%clk 0:04:38]}
8... Nxf2 {[%clk 0:04:44]} 9. Rxf2 {[%clk 0:04:31.2]} 9... Bxd3 {[%clk
0:04:41.2]} 10. Rd2 {[%clk 0:04:27.8]} 10... Kc8 {[%clk 0:04:11.5]} 11. Rxd3
{[%clk 0:04:25.6]} 11... a5 {[%clk 0:04:08.7]} 12. Ne5 {[%clk 0:04:19.8]} 12...
Ra6 {[%clk 0:04:08.3]} 13. Nxf7 {[%clk 0:04:16.6]} 13... Rb6 {[%clk 0:04:07.6]}
14. Rd8# {[%clk 0:04:14.2]} 1-0

[Event "Live Chess"]
[Site "Chess.com"]
[Date "2023.05.20"]
[Round "-"]
[White "MaximKris"]
[Black "WelshTiger"]
[Result "0-1"]
[WhiteElo "1876"]
[BlackElo "2404"]
[TimeControl "300"]
[EndTime "12:14:48 PDT"]
[Termination "WelshTiger won by checkmate"]

1. e4 {[%clk 0:04:59.1]} 1... c5 {[%clk 0:04:49.9]} 2. Nf3 {[%clk 0:04:56.6]}
2... d6 {[%clk 0:04:49.2]} 3. c3 {[%clk 0:04:46.6]} 3... Nf6 {[%clk 0:04:47.6]}
4. Bd3 {[%clk 0:04:36]} 4... e5 {[%clk 0:04:44.3]} 5. O-O {[%clk 0:04:33.9]}
5... Be7 {[%clk 0:04:43.3]} 6. Bc2 {[%clk 0:04:08.4]} 6... O-O {[%clk
0:04:41.6]} 7. d4 {[%clk 0:04:06.5]} 7... cxd4 {[%clk 0:04:40.5]} 8. cxd4 {[%clk
0:04:05.3]} 8... Bg4 {[%clk 0:04:39.6]} 9. dxe5 {[%clk 0:04:00.8]} 9... Bxf3
{[%clk 0:04:37]} 10. Qxf3 {[%clk 0:03:56.8]} 10... dxe5 {[%clk 0:04:36.4]} 11.
Rd1 {[%clk 0:03:55.7]} 11... Qc7 {[%clk 0:04:28]} 12. Nc3 {[%clk 0:03:53.1]}
12... Nc6 {[%clk 0:04:27.2]} 13. Nd5 {[%clk 0:03:50.5]} 13... Nxd5 {[%clk
0:04:26.5]} 14. exd5 {[%clk 0:03:49.9]} 14... Nd4 {[%clk 0:04:25.6]} 15. Bxh7+
{[%clk 0:03:42]} 15... Kxh7 {[%clk 0:04:22.7]} 16. Qh5+ {[%clk 0:03:40.7]} 16...
Kg8 {[%clk 0:04:21.8]} 17. Be3 {[%clk 0:03:36.5]} 17... Bf6 {[%clk 0:04:09.9]}
18. Bxd4 {[%clk 0:03:31.3]} 18... exd4 {[%clk 0:04:08.9]} 19. Rac1 {[%clk
0:03:30]} 19... Qe5 {[%clk 0:04:05.6]} 20. Qxe5 {[%clk 0:03:24.1]} 20... Bxe5
{[%clk 0:04:04.8]} 21. g3 {[%clk 0:03:21.7]} 21... Rac8 {[%clk 0:04:02.3]} 22.
f4 {[%clk 0:03:18.6]} 22... Bd6 {[%clk 0:04:01.3]} 23. Re1 {[%clk 0:03:10.9]}
23... Rfe8 {[%clk 0:03:53.2]} 24. Rxe8+ {[%clk 0:03:08.2]} 24... Rxe8 {[%clk
0:03:52.2]} 25. Rd1 {[%clk 0:02:59.8]} 25... Re2 {[%clk 0:03:49]} 26. Kf1 {[%clk
0:02:51.5]} 26... Rxb2 {[%clk 0:03:46.1]} 27. Rxd4 {[%clk 0:02:46.4]} 27... Rxa2
{[%clk 0:03:45.1]} 28. Rc4 {[%clk 0:02:40.9]} 28... a5 {[%clk 0:03:42.6]} 29.
Rc8+ {[%clk 0:02:39.2]} 29... Kh7 {[%clk 0:03:41.4]} 30. Rd8 {[%clk 0:02:37.8]}
30... Bb4 {[%clk 0:03:37.6]} 31. Rb8 {[%clk 0:02:32]} 31... Rd2 {[%clk 0:03:27]}
32. Rxb7 {[%clk 0:02:29.2]} 32... Rxd5 {[%clk 0:03:22.2]} 33. Rxf7 {[%clk
0:02:27.3]} 33... a4 {[%clk 0:03:21.7]} 34. Ra7 {[%clk 0:02:25.5]} 34... Ra5
{[%clk 0:03:20.6]} 35. Rb7 {[%clk 0:02:24.1]} 35... a3 {[%clk 0:03:18.8]} 36.
Rxb4 {[%clk 0:02:21]} 36... a2 {[%clk 0:03:18.2]} 37. Re4 {[%clk 0:02:19.2]}
37... a1=Q+ {[%clk 0:03:16.7]} 38. Re1 {[%clk 0:02:18.8]} 38... Qb2 {[%clk
0:03:15.1]} 39. Re2 {[%clk 0:02:17.7]} 39... Ra1+ {[%clk 0:03:14.3]} 40. Kf2
{[%clk 0:02:16.4]} 40... Qd4+ {[%clk 0:03:13.9]} 41. Kf3 {[%clk 0:02:15.3]}
41... Qd3+ {[%clk 0:03:08.1]} 42. Kf2 {[%clk 0:02:14]} 42... Rh1 {[%clk
0:03:04]} 43. h4 {[%clk 0:02:11.6]} 43... Rh2+ {[%clk 0:03:03]} 44. Kg1 {[%clk
0:02:10.4]} 44... Qxe2 {[%clk 0:03:02]} 45. h5 {[%clk 0:02:09.8]} 45... Qg2#
{[%clk 0:03:01.1]} 0-1

[Event "Live Chess"]
[Site "Chess.com"]
[Date "2023.05.20"]
[Round "-"]
[White "SallyTheJanitor"]
[Black "Ocelot32"]
[Result "0-1"]
[WhiteElo "342"]
[BlackElo "1397"]
[TimeControl "300"]
[EndTime "12:14:48 PDT"]
[Termination "Ocelot32 won - game abandoned"]

1. c4 {[%clk 0:04:47.5]} 1... Nf6 {[%clk 0:04:55.1]} 2. d3 {[%clk 0:04:46.4]}
2... c5 {[%clk 0:04:53.8]} 3. Nf3 {[%clk 0:04:43.1]} 3... e6 {[%clk 0:04:52.9]}
4. Nc3 {[%clk 0:04:41.8]} 4... Be7 {[%clk 0:04:51.9]} 5. Ne4 {[%clk 0:04:40.6]}
5... d6 {[%clk 0:04:46]} 6. Nxf6+ {[%clk 0:04:39.3]} 6... Bxf6 {[%clk
0:04:44.7]} 7. g3 {[%clk 0:04:34.7]} 7... Nc6 {[%clk 0:04:43.4]} 8. Bg2 {[%clk
0:04:34]} 8... Bd7 {[%clk 0:04:42.4]} 9. Be3 {[%clk 0:04:23.9]} 9... O-O {[%clk
0:04:39.7]} 10. Qd2 {[%clk 0:04:22.2]} 10... a6 {[%clk 0:04:30]} 11. Ng5 {[%clk
0:04:17.8]} 11... h6 {[%clk 0:04:24.5]} 12. Nf3 {[%clk 0:04:14.3]} 12... b5
{[%clk 0:04:11.5]} 13. g4 {[%clk 0:04:12.3]} 13... bxc4 {[%clk 0:04:09.5]} 14.
g5 {[%clk 0:04:11.3]} 14... hxg5 {[%clk 0:03:59.6]} 0-1

[Event "Live Chess"]
[Site "Chess.com"]
[Date "2023.05.20"]
[Round "-"]
[White "Demyan7777"]
[Black "Geomorph"]
[Result "1-0"]
[WhiteElo "1668"]
[BlackElo "1238"]
[TimeControl "300"]
[EndTime "12:14:55 PDT"]
[Termination "Demyan7777 won by resignation"]

1. e4 {[%clk 0:04:58.1]} 1... e5 {[%clk 0:04:58.9]} 2. Nf3 {[%clk 0:04:56.1]}
2... Nc6 {[%clk 0:04:57.3]} 3. d4 {[%clk 0:04:54.2]} 3... exd4 {[%clk
0:04:55.5]} 4. Nxd4 {[%clk 0:04:52.9]} 4... Bc5 {[%clk 0:04:55]} 5. Be3 {[%clk
0:04:47.6]} 5... Qf6 {[%clk 0:04:53.9]} 6. c3 {[%clk 0:04:46.2]} 6... Qg6 {[%clk
0:04:52.3]} 7. Bd3 {[%clk 0:04:39.8]} 7... Qxg2 {[%clk 0:04:50.3]} 8. Rf1 {[%clk
0:04:29.1]} 8... Nf6 {[%clk 0:04:44.4]} 9. Nb5 {[%clk 0:04:21.7]} 9... Bxe3
{[%clk 0:04:34.9]} 10. Nxc7+ {[%clk 0:04:19.5]} 10... Kd8 {[%clk 0:04:32.2]} 11.
Nxa8 {[%clk 0:04:18.4]} 11... Bh6 {[%clk 0:04:18.7]} 12. Qe2 {[%clk 0:04:12.6]}
12... Re8 {[%clk 0:04:05.7]} 13. f3 {[%clk 0:04:10.2]} 13... Qg5 {[%clk
0:03:55.3]} 14. Nd2 {[%clk 0:04:05]} 14... Nd5 {[%clk 0:03:43.3]} 15. O-O-O
{[%clk 0:03:50.4]} 15... Ne3 {[%clk 0:03:37]} 16. f4 {[%clk 0:03:48.1]} 16...
Qc5 {[%clk 0:03:23.7]} 17. Nb3 {[%clk 0:03:44.4]} 17... Qd6 {[%clk 0:02:59.5]}
18. Qxe3 {[%clk 0:03:40.3]} 18... f5 {[%clk 0:02:53.2]} 19. e5 {[%clk
0:03:37.1]} 19... Nxe5 {[%clk 0:02:46.7]} 20. Qd4 {[%clk 0:03:29.5]} 20... Qxd4
{[%clk 0:02:36.1]} 21. Nxd4 {[%clk 0:03:27.1]} 21... d6 {[%clk 0:02:27.7]} 22.
Bxf5 {[%clk 0:03:20.3]} 22... Bxf5 {[%clk 0:02:24.4]} 23. Nxf5 {[%clk
0:03:18.9]} 23... Ng4 {[%clk 0:02:20]} 24. Rxd6+ {[%clk 0:03:16.2]} 24... Kc8
{[%clk 0:02:11.9]} 25. Rfd1 {[%clk 0:03:13.3]} 25... Bxf4+ {[%clk 0:02:07.4]}
26. Kb1 {[%clk 0:03:08.7]} 26... Bxd6 {[%clk 0:01:56.1]} 27. Nxd6+ {[%clk
0:03:06.2]} 27... Kd7 {[%clk 0:01:54.2]} 28. Nxe8+ {[%clk 0:03:04]} 28... Kxe8
{[%clk 0:01:54.1]} 29. Nc7+ {[%clk 0:03:01.9]} 29... Kf7 {[%clk 0:01:52.9]} 30.
h3 {[%clk 0:03:00.1]} 30... Ne3 {[%clk 0:01:50.2]} 31. Re1 {[%clk 0:02:58.1]}
31... Ng2 {[%clk 0:01:48.7]} 32. Rf1+ {[%clk 0:02:55.7]} 32... Kg6 {[%clk
0:01:45]} 33. Nd5 {[%clk 0:02:54.5]} 33... h5 {[%clk 0:01:41.3]} 34. Rg1 {[%clk
0:02:52.2]} 1-0

[Event "Live Chess"]
[Site "Chess.com"]
[Date "2023.05.20"]
[Round "-"]
[White "AbilifyXL"]
[Black "JoshMcK"]
[Result "1-0"]
[WhiteElo "1948"]
[BlackElo "1561"]
[TimeControl "300"]
[EndTime "12:15:00 PDT"]
[Termination "AbilifyXL won by resignation"]

1. d4 {[%clk 0:04:59.6]} 1... d5 {[%clk 0:04:58.6]} 2. c4 {[%clk 0:04:58.8]}
2... e6 {[%clk 0:04:58.2]} 3. Nc3 {[%clk 0:04:57.9]} 3... Nf6 {[%clk 0:04:57.8]}
4. cxd5 {[%clk 0:04:57.2]} 4... exd5 {[%clk 0:04:57.7]} 5. Nf3 {[%clk
0:04:56.6]} 5... Nc6 {[%clk 0:04:53.1]} 6. Bg5 {[%clk 0:04:55.9]} 6... Be7
{[%clk 0:04:51.3]} 7. e3 {[%clk 0:04:55.1]} 7... Bg4 {[%clk 0:04:49.7]} 8. Be2
{[%clk 0:04:54.1]} 8... h6 {[%clk 0:04:47.5]} 9. Bxf6 {[%clk 0:04:51.9]} 9...
Bxf6 {[%clk 0:04:46.1]} 10. Qb3 {[%clk 0:04:51.1]} 10... b6 {[%clk 0:04:40.2]}
11. Qxd5 {[%clk 0:04:48.5]} 11... Qxd5 {[%clk 0:04:36.9]} 12. Nxd5 {[%clk
0:04:47.7]} 12... O-O-O {[%clk 0:04:33.9]} 13. Nxf6 {[%clk 0:04:45.7]} 13...
gxf6 {[%clk 0:04:32.6]} 14. O-O {[%clk 0:04:44.7]} 14... Bxf3 {[%clk 0:04:31.4]}
15. Bxf3 {[%clk 0:04:43.7]} 15... Ne7 {[%clk 0:04:27.2]} 16. Rac1 {[%clk
0:04:42.2]} 16... h5 {[%clk 0:04:23.1]} 17. g3 {[%clk 0:04:41]} 17... h4 {[%clk
0:04:22.4]} 18. Rc2 {[%clk 0:04:37.7]} 18... hxg3 {[%clk 0:04:21.2]} 19. hxg3
{[%clk 0:04:36.9]} 19... Rh6 {[%clk 0:04:17.7]} 20. Rfc1 {[%clk 0:04:34.7]}
20... Rd7 {[%clk 0:04:13.2]} 21. Bg4 {[%clk 0:04:33.4]} 21... f5 {[%clk
0:04:11.6]} 22. Bf3 {[%clk 0:04:32.5]} 22... f6 {[%clk 0:03:53.8]} 23. Kg2
{[%clk 0:04:30.9]} 23... Ng6 {[%clk 0:03:52.4]} 24. Rc6 {[%clk 0:04:22.7]} 24...
Rdh7 {[%clk 0:03:50]} 25. Kg1 {[%clk 0:04:19.5]} 25... Nf8 {[%clk 0:03:41.6]}
26. Kf1 {[%clk 0:04:14]} 26... Re7 {[%clk 0:03:37]} 27. b4 {[%clk 0:04:07.2]}
27... Ne6 {[%clk 0:03:35.5]} 28. a4 {[%clk 0:04:02.7]} 28... Ng5 {[%clk
0:03:34]} 29. Bg2 {[%clk 0:04:00.7]} 29... Ne4 {[%clk 0:03:31.5]} 30. a5 {[%clk
0:03:57.3]} 30... Nd2+ {[%clk 0:03:20.3]} 31. Ke2 {[%clk 0:03:53.5]} 31... Nb3
{[%clk 0:03:19.2]} 32. R1c3 {[%clk 0:03:44.7]} 32... Nxd4+ {[%clk 0:03:18]} 33.
Kf1 {[%clk 0:03:40.1]} 33... Nxc6 {[%clk 0:03:16.7]} 34. Rxc6 {[%clk 0:03:38.6]}
34... Rd7 {[%clk 0:03:08.5]} 35. Bf3 {[%clk 0:03:31.4]} 35... Rd6 {[%clk
0:03:03.1]} 36. Rc4 {[%clk 0:03:29.1]} 36... Rh7 {[%clk 0:02:57.9]} 37. axb6
{[%clk 0:03:27.7]} 37... axb6 {[%clk 0:02:55.8]} 38. b5 {[%clk 0:03:24.7]} 38...
Rhd7 {[%clk 0:02:53]} 39. Ra4 {[%clk 0:03:22.8]} 39... Re7 {[%clk 0:02:44]} 40.
Bc6 {[%clk 0:03:20.4]} 40... Rxc6 {[%clk 0:02:29.4]} 41. bxc6 {[%clk 0:03:19.2]}
1-0

[Event "Live Chess"]
[Site "Chess.com"]
[Date "2023.05.20"]
[Round "-"]
[White "xx_blindpuffin_xx"]
[Black "f4nomore"]
[Result "1-0"]
[WhiteElo "2211"]
[BlackElo "1372"]
[TimeControl "300"]
[EndTime "12:15:03 PDT"]
[Termination "xx_blindpuffin_xx won by checkmate"]

1. d4 {[%clk 0:04:58.5]} 1... g6 {[%clk 0:04:59.9]} 2. Bf4 {[%clk 0:04:57.9]}
2... Bg7 {[%clk 0:04:58.2]} 3. e3 {[%clk 0:04:57.4]} 3... d6 {[%clk 0:04:56.7]}
4. Nf3 {[%clk 0:04:57]} 4... Nf6 {[%clk 0:04:55]} 5. h3 {[%clk 0:04:56.4]} 5...
Nbd7 {[%clk 0:04:52.7]} 6. Be2 {[%clk 0:04:55.9]} 6... c5 {[%clk 0:04:51.6]} 7.
c3 {[%clk 0:04:54.5]} 7... cxd4 {[%clk 0:04:50.5]} 8. exd4 {[%clk 0:04:53.1]}
8... O-O {[%clk 0:04:49.2]} 9. O-O {[%clk 0:04:52.2]} 9... Nb6 {[%clk 0:04:48]}
10. Nbd2 {[%clk 0:04:51]} 10... Nbd5 {[%clk 0:04:46.9]} 11. Bh2 {[%clk
0:04:50.1]} 11... Be6 {[%clk 0:04:34.5]} 12. Re1 {[%clk 0:04:46.9]} 12... Qd7
{[%clk 0:04:33.3]} 13. Ng5 {[%clk 0:04:43.7]} 13... h6 {[%clk 0:04:28.4]} 14.
Nxe6 {[%clk 0:04:42.5]} 14... fxe6 {[%clk 0:04:26.9]} 15. Bd3 {[%clk 0:04:32.3]}
15... g5 {[%clk 0:04:22]} 16. Qe2 {[%clk 0:04:30.8]} 16... e5 {[%clk 0:04:05.5]}
17. dxe5 {[%clk 0:04:28.6]} 17... dxe5 {[%clk 0:04:03.9]} 18. Qxe5 {[%clk
0:04:27.6]} 18... Qc6 {[%clk 0:03:39.2]} 19. Bc4 {[%clk 0:04:23.1]} 19... Kh7
{[%clk 0:03:35.2]} 20. Qe6 {[%clk 0:04:09.1]} 20... Qxe6 {[%clk 0:03:32.5]} 21.
Rxe6 {[%clk 0:04:09]} 21... a6 {[%clk 0:03:29]} 22. Ne4 {[%clk 0:04:02.7]} 22...
b5 {[%clk 0:03:17.9]} 23. Nxf6+ {[%clk 0:03:57.3]} 23... Nxf6 {[%clk 0:03:13.9]}
24. Bd3+ {[%clk 0:03:55.9]} 24... Kh8 {[%clk 0:03:07.1]} 25. Rxe7 {[%clk
0:03:54.9]} 25... Nd5 {[%clk 0:02:50.8]} 26. Ree1 {[%clk 0:03:45]} 26... Nf4
{[%clk 0:02:44.5]} 27. Bf1 {[%clk 0:03:39.4]} 27... Rad8 {[%clk 0:02:33.4]} 28.
Rad1 {[%clk 0:03:37.8]} 28... Rxd1 {[%clk 0:02:25.1]} 29. Rxd1 {[%clk
0:03:37.7]} 29... b4 {[%clk 0:02:13]} 30. cxb4 {[%clk 0:03:31.8]} 30... Bxb2
{[%clk 0:02:09.9]} 31. Bg3 {[%clk 0:03:29]} 31... Bc3 {[%clk 0:02:02.1]} 32. Rd6
{[%clk 0:03:25.5]} 32... Bxb4 {[%clk 0:01:55.8]} 33. Rxh6+ {[%clk 0:03:23.3]}
33... Kg7 {[%clk 0:01:53]} 34. Rxa6 {[%clk 0:03:23.2]} 34... Nd5 {[%clk
0:01:38.8]} 35. Bc4 {[%clk 0:03:19.5]} 35... Nc3 {[%clk 0:01:29.3]} 36. Be5+
{[%clk 0:03:16.1]} 36... Kh7 {[%clk 0:01:19.9]} 37. Bd3+ {[%clk 0:03:12.1]}
37... Kg8 {[%clk 0:01:13.9]} 38. Ra7 {[%clk 0:02:52.3]} 38... Rf7 {[%clk
0:01:00.7]} 39. Bc4 {[%clk 0:02:50.9]} 39... Ne2+ {[%clk 0:00:42.5]} 40. Kh2
{[%clk 0:02:42.9]} 40... Kh7 {[%clk 0:00:36.1]} 41. Rxf7+ {[%clk 0:02:40.8]}
41... Kg6 {[%clk 0:00:34.8]} 42. Rf6+ {[%clk 0:02:39.5]} 42... Kh5 {[%clk
0:00:32.8]} 43. Bxe2+ {[%clk 0:02:38.3]} 43... g4 {[%clk 0:00:27.9]} 44. Bf4
{[%clk 0:02:37]} 44... Be7 {[%clk 0:00:22.2]} 45. Rh6# {[%clk 0:02:35.8]} 1-0

[Event "Live Chess"]
[Site "Chess.com"]
[Date "2023.05.20"]
[Round "-"]
[White "JackRudd"]
[Black "luckywookie"]
[Result "1-0"]
[WhiteElo "2480"]
[BlackElo "744"]
[TimeControl "300"]
[EndTime "12:15:04 PDT"]
[Termination "JackRudd won by checkmate"]

1. d4 {[%clk 0:04:58.3]} 1... d5 {[%clk 0:04:58.8]} 2. c4 {[%clk 0:04:55.2]}
2... c6 {[%clk 0:04:56.9]} 3. Nf3 {[%clk 0:04:53.8]} 3... Nf6 {[%clk 0:04:55.2]}
4. e3 {[%clk 0:04:52.1]} 4... Bg4 {[%clk 0:04:48.6]} 5. Nc3 {[%clk 0:04:49.7]}
5... e6 {[%clk 0:04:47.4]} 6. Be2 {[%clk 0:04:47.5]} 6... Nbd7 {[%clk
0:04:46.1]} 7. O-O {[%clk 0:04:46.4]} 7... Bd6 {[%clk 0:04:44.7]} 8. b3 {[%clk
0:04:42.3]} 8... O-O {[%clk 0:04:42.7]} 9. a4 {[%clk 0:04:39.1]} 9... Bb4 {[%clk
0:04:38.6]} 10. Bb2 {[%clk 0:04:34.4]} 10... Bxc3 {[%clk 0:04:31.1]} 11. Bxc3
{[%clk 0:04:33.2]} 11... Ne4 {[%clk 0:04:29.9]} 12. Bb4 {[%clk 0:04:30]} 12...
Re8 {[%clk 0:04:23.7]} 13. cxd5 {[%clk 0:04:27.7]} 13... cxd5 {[%clk 0:04:04.5]}
14. Bb5 {[%clk 0:04:25.8]} 14... a6 {[%clk 0:03:58.2]} 15. Bxd7 {[%clk
0:04:24.4]} 15... Qxd7 {[%clk 0:03:55.8]} 16. h3 {[%clk 0:04:22.1]} 16... Bxf3
{[%clk 0:03:51.8]} 17. gxf3 {[%clk 0:04:19.8]} 17... Ng5 {[%clk 0:03:48.9]} 18.
f4 {[%clk 0:04:15.3]} 18... Nxh3+ {[%clk 0:03:44.9]} 19. Kg2 {[%clk 0:04:13.3]}
19... Qe7 {[%clk 0:03:42.4]} 20. Bxe7 {[%clk 0:04:11.3]} 20... Rxe7 {[%clk
0:03:41]} 21. Kxh3 {[%clk 0:04:10.2]} 21... f5 {[%clk 0:03:38.9]} 22. Rc1 {[%clk
0:04:08.3]} 22... g5 {[%clk 0:03:31.6]} 23. Rg1 {[%clk 0:04:06.4]} 23... g4+
{[%clk 0:03:29.9]} 24. Kg3 {[%clk 0:04:05.2]} 24... Rg7 {[%clk 0:03:27.9]} 25.
Rc5 {[%clk 0:04:01.9]} 25... Rg6 {[%clk 0:03:26]} 26. Rh1 {[%clk 0:03:59.9]}
26... Kg7 {[%clk 0:03:24.1]} 27. Rc7+ {[%clk 0:03:58.4]} 27... Kf6 {[%clk
0:03:21.5]} 28. Rhxh7 {[%clk 0:03:56.8]} 28... Rag8 {[%clk 0:03:17.8]} 29. Rhf7#
{[%clk 0:03:54.7]} 1-0

[Event "Live Chess"]
[Site "Chess.com"]
[Date "2023.05.20"]
[Round "-"]
[White "wadsy27"]
[Black "Stanbad1"]
[Result "0-1"]
[WhiteElo "2574"]
[BlackElo "2431"]
[TimeControl "300"]
[EndTime "12:15:05 PDT"]
[Termination "Stanbad1 won by resignation"]

1. c4 {[%clk 0:04:55.1]} 1... Nf6 {[%clk 0:04:58.9]} 2. g3 {[%clk 0:04:53]} 2...
g6 {[%clk 0:04:56.4]} 3. Bg2 {[%clk 0:04:52]} 3... d6 {[%clk 0:04:50.2]} 4. Nc3
{[%clk 0:04:50.5]} 4... Bg7 {[%clk 0:04:49.5]} 5. e4 {[%clk 0:04:46.4]} 5... O-O
{[%clk 0:04:48.6]} 6. Nge2 {[%clk 0:04:45.6]} 6... e5 {[%clk 0:04:46.8]} 7. d3
{[%clk 0:04:42.4]} 7... c6 {[%clk 0:04:44.8]} 8. O-O {[%clk 0:04:40.9]} 8... Na6
{[%clk 0:04:43]} 9. Rb1 {[%clk 0:04:38]} 9... Nc7 {[%clk 0:04:42.1]} 10. Bg5
{[%clk 0:04:22.7]} 10... h6 {[%clk 0:04:37.6]} 11. Bxf6 {[%clk 0:04:21.9]} 11...
Bxf6 {[%clk 0:04:34.2]} 12. b4 {[%clk 0:04:21.5]} 12... Be6 {[%clk 0:04:31.3]}
13. b5 {[%clk 0:04:20]} 13... d5 {[%clk 0:04:28.7]} 14. bxc6 {[%clk 0:03:05.8]}
14... bxc6 {[%clk 0:04:25.4]} 15. exd5 {[%clk 0:02:57.3]} 15... cxd5 {[%clk
0:04:23.3]} 16. Qa4 {[%clk 0:02:28.8]} 16... Rc8 {[%clk 0:04:04]} 17. Qxa7
{[%clk 0:01:42.5]} 17... dxc4 {[%clk 0:04:00.4]} 18. dxc4 {[%clk 0:01:40.7]}
18... Bxc4 {[%clk 0:04:00.3]} 19. Rfd1 {[%clk 0:01:33]} 19... Qe8 {[%clk
0:03:44.8]} 20. Ne4 {[%clk 0:01:22.9]} 20... Be7 {[%clk 0:03:42.4]} 21. N2c3
{[%clk 0:01:19.8]} 21... Ne6 {[%clk 0:03:38.3]} 22. Rb7 {[%clk 0:01:07.8]} 22...
Ra8 {[%clk 0:02:51.4]} 23. Rxe7 {[%clk 0:01:06]} 23... Rxa7 {[%clk 0:02:50.6]}
24. Nf6+ {[%clk 0:01:05.1]} 24... Kh8 {[%clk 0:02:46.4]} 25. Rxe8 {[%clk
0:01:04]} 25... Rxe8 {[%clk 0:02:40.5]} 26. Nxe8 {[%clk 0:01:03.9]} 26... Nd4
{[%clk 0:02:39.4]} 27. Nd6 {[%clk 0:00:58.5]} 27... Be6 {[%clk 0:02:35.2]} 28.
Ndb5 {[%clk 0:00:52.7]} 28... Nxb5 {[%clk 0:02:33.3]} 29. Nxb5 {[%clk
0:00:52.6]} 29... Rxa2 {[%clk 0:02:31.9]} 30. Bd5 {[%clk 0:00:51.1]} 30... Bxd5
{[%clk 0:02:26.2]} 31. Rxd5 {[%clk 0:00:51]} 31... e4 {[%clk 0:02:23.9]} 32. Nc3
{[%clk 0:00:45.1]} 32... Ra1+ {[%clk 0:02:22]} 33. Kg2 {[%clk 0:00:44.3]} 33...
Re1 {[%clk 0:02:20.6]} 34. Re5 {[%clk 0:00:42.1]} 34... f5 {[%clk 0:02:19.7]}
35. Re7 {[%clk 0:00:41.3]} 35... g5 {[%clk 0:02:17.4]} 36. Nd5 {[%clk
0:00:39.8]} 36... Kg8 {[%clk 0:02:15.5]} 37. h4 {[%clk 0:00:36.9]} 37... Kf8
{[%clk 0:02:12.5]} 38. Re5 {[%clk 0:00:33]} 38... f4 {[%clk 0:02:11.7]} 39. gxf4
{[%clk 0:00:31.9]} 39... gxh4 {[%clk 0:02:09.9]} 40. f5 {[%clk 0:00:28.8]} 40...
Rd1 {[%clk 0:02:07.2]} 41. f6 {[%clk 0:00:27.2]} 41... Kf7 {[%clk 0:02:05.5]}
42. Kh3 {[%clk 0:00:25]} 42... Rh1+ {[%clk 0:02:03]} 43. Kg4 {[%clk 0:00:23.6]}
43... h3 {[%clk 0:02:01.5]} 44. Re7+ {[%clk 0:00:22.5]} 44... Kf8 {[%clk
0:02:01]} 45. Kg3 {[%clk 0:00:18.2]} 45... h2 {[%clk 0:01:58.5]} 46. Kg2 {[%clk
0:00:17]} 46... Rd1 {[%clk 0:01:57.3]} 47. Kxh2 {[%clk 0:00:13.3]} 47... Rxd5
{[%clk 0:01:56.1]} 48. Rh7 {[%clk 0:00:12.8]} 48... h5 {[%clk 0:01:54.2]} 49.
Kg3 {[%clk 0:00:11.6]} 49... Rf5 {[%clk 0:01:53.8]} 50. Rh6 {[%clk 0:00:10.6]}
50... Kf7 {[%clk 0:01:52.3]} 51. Kh4 {[%clk 0:00:10]} 51... Rxf2 {[%clk
0:01:50.9]} 52. Rxh5 {[%clk 0:00:08.3]} 52... Rh2+ {[%clk 0:01:49.7]} 53. Kg4
{[%clk 0:00:07.6]} 53... Rxh5 {[%clk 0:01:49]} 0-1